[Event "Super United Croatia GCT Blitz 2022"]
[Site "Zagreb"]
[Date "2022.07.24"]
[Round "16"]
[White "Vachier-Lagrave, Maxime"]
[Black "Topalov, Veselin"]
[Result "1-0"]
[ECO "B13"]
[WhiteElo "2760"]
[BlackElo "2728"]
[Annotator "TA"]
[PlyCount "115"]
[EventDate "2022.07.20"]
[EventType "tourn"]
[EventCountry "CRO"]
[SourceTitle "playchess.com"]
[Source "ChessBase"]
[SourceQuality "1"]
[TimeControl "300+2"]

{[%evp 16,115,33,29,54,37,86,18,26,0,0,0,0,-10,-8,-15,-4,-16,-13,-33,-14,-8,-8,-21,-25,-54,-14,-64,-23,-27,0,-11,-27,-24,-27,-59,-56,-91,-67,-108,-104,-166,-167,-154,-157,-390,-385,-375,-378,-483,-472,-472,-434,-480,-470,-401,-455,-432,-384,-381,-454,-427,-380,-367,-323,-303,-258,-379,-377,-388,-387,-652,-608,-801,-723,-1067,-1056,-987,-946,-2580,-2175,-2686,-846,-29968,-29965,-29967,-29958,-29957,-29959,-29944,-973,-29960,-29958,-29952,-29950,-6356,-5114,-5057,-952,-840,29986,476]} 1. e4 {[%emt 0:00:01]} c6 {[%emt 0:00:00]} 2. d4 {[%emt 0:00:04]} d5 {[%emt 0:00:02]} 3. exd5 {[%emt 0:00:02]} cxd5 {[%emt 0:00:01]} 4. Bd3 {[%emt 0:00:01]} Nc6 {[%emt 0:00:01]} 5. c3 {[%emt 0:00:01]} g6 {[%emt 0:00:10]} 6. Nf3 {[%emt 0:00:09]} Bg7 {[%emt 0:00:02]} 7. h3 {[%emt 0:00:02]} Nh6 {[%emt 0:00:13]} 8. O-O {[%emt 0:00:05]} O-O {[%emt 0:00:02]} 9. Re1 {[%emt 0:00:01]} a6 {[%emt 0:00:28] B13: Caro-Kann: Exchange Variation and Panov-Botvinnik Attack.} 10. a4 {[%emt 0:00:08]} f6 {[%emt 0:00:08] [#]} (10... Bf5 $14 {feels stronger.}) 11. Bc2 $146 {[%emt 0:00:23] White is more active.} (11. c4 $16) ({Predecessor:} 11. Bf4 Nf7 12. Bf1 e5 13. dxe5 fxe5 14. Bg3 Be6 15. Na3 Qf6 16. Nc2 Rad8 17. Ra3 {½-½ (24) Panken,R-Felber,J Long Island 1988}) 11... Nf7 {[%emt 0:00:04] The position is equal.} 12. Be3 {[%emt 0:00:08]} e5 {[%emt 0:00:06]} 13. dxe5 {[%emt 0:00:01]} fxe5 {[%emt 0:00:01]} 14. Bb3 {[%emt 0:00:10]} Be6 {[%emt 0:00:04]} 15. Nbd2 {[%emt 0:00:02]} Re8 {[%emt 0:00:34]} 16. Nf1 {[%emt 0:00:03]} Rc8 {[%emt 0:00:00]} 17. Ng3 {[%emt 0:00:10]} Na5 {[%emt 0:00:05]} 18. Ba2 {[%emt 0:00:05]} Nc4 {[%emt 0:00:01]} 19. Bxc4 {[%emt 0:00:04]} Rxc4 {[%emt 0:00:02]} 20. Qd2 {[%emt 0:00:14]} Qc8 {[%emt 0:00:09]} (20... Qa5 $5 {[%cal Rc4a4]}) 21. Ng5 {[%emt 0:00:20]} (21. a5 $11) 21... Nxg5 {[%emt 0:00:44]} (21... d4 {with more complications.} 22. cxd4 exd4 23. Bf4 Rc2) 22. Bxg5 {[%emt 0:00:01]} h5 {[%emt 0:00:39]} 23. Re2 {[%emt 0:00:17]} Kh7 {[%emt 0:00:32]} 24. Rae1 {[%emt 0:00:32]} Bf7 {[%emt 0:00:02]} (24... Rxa4 25. Nxh5 $1 gxh5 26. Qc2+ Re4 27. f3 $16) 25. Kh2 {[%emt 0:00:14]} Qc6 {[%emt 0:00:12]} ({Don't do} 25... Rxa4 26. Qc2 b5 27. Nxh5 $16) 26. a5 {[%emt 0:00:09]} Qc7 {[%emt 0:00:01]} 27. h4 {[%emt 0:00:13]} Qxa5 {[%emt 0:00:09]} 28. f3 {[%emt 0:00:34]} (28. f4 $17) 28... Qc7 {[%emt 0:00:02]} 29. Nf1 {[%emt 0:00:07]} d4 {[%emt 0:00:03]} 30. Ng3 {[%emt 0:00:11]} (30. Kg1 $17) 30... dxc3 $19 {[%emt 0:00:01]} 31. bxc3 {[%emt 0:00:00]} e4 $1 {[%emt 0:00:01]} 32. Rxe4 {[%emt 0:00:19]} Rexe4 {[%emt 0:00:02]} 33. Rxe4 {[%emt 0:00:01]} Rxe4 {[%emt 0:00:01]} 34. fxe4 {[%emt 0:00:01]} Bxc3 {[%emt 0:00:01]} 35. Qf2 {[%emt 0:00:07]} Be5 {[%emt 0:00:02] Against Bf4. A strong pair of Bishops.} 36. Bf6 {[%emt 0:00:01]} Kg8 {[%emt 0:00:20]} 37. Bxe5 {[%emt 0:00:02]} Qxe5 {[%emt 0:00:01][%mdl 4096] Endgame KQB-KQN} 38. Qb6 {[%emt 0:00:10]} Qe7 {[%emt 0:00:08]} 39. Kg1 {[%emt 0:00:07]} Qxh4 {[%emt 0:00:03]} 40. Qc7 {[%emt 0:00:05]} Qg5 {[%emt 0:00:03][%cal Ob7b6]} 41. Nf1 {[%emt 0:00:06]} (41. Qc8+ $142 Kg7 42. Qc3+ Kg8 43. Qc8+ Kg7 44. Qc3+ Kf8 45. e5) 41... b5 {[%emt 0:00:18]} 42. Qc8+ {[%emt 0:00:06]} Kg7 {[%emt 0:00:01]} 43. Qxa6 $2 {[%emt 0:00:01]} (43. Qc3+ Qf6 44. Qc5) 43... Qc5+ {[%emt 0:00:05]} 44. Kh2 {[%emt 0:00:03]} b4 {[%emt 0:00:03] White must now prevent ...Qc4.} 45. Qa1+ {[%emt 0:00:04]} Qc3 {[%emt 0:00:02]} 46. Qa5 {[%emt 0:00:03]} Qd4 {[%emt 0:00:04]} 47. Qg5 {[%emt 0:00:05]} Qf6 {[%emt 0:00:14]} 48. Qb5 {[%emt 0:00:04]} b3 {[%emt 0:00:06]} 49. e5 {[%emt 0:00:17]} Qf4+ {[%emt 0:00:01]} 50. Kg1 {[%emt 0:00:01]} Bc4 {[%emt 0:00:02]} 51. Qd7+ {[%emt 0:00:03]} Kh6 {[%emt 0:00:00]} 52. Nd2 {[%emt 0:00:01]} b2 {[%emt 0:00:03]} (52... Qe3+ $142 53. Kh2 Qxe5+ 54. Kg1 Bd5 55. Nxb3 Bxb3 56. Qd2+ g5 57. Qd3 Bd5 58. Kf2 Qf4+ 59. Kg1 Qe4 60. Qa6+ Qe6 61. Qf1 h4 62. Qd3 Qe4 63. Qf1 {[#]} Qxg2+ $1 {[%mdl 512]} 64. Qxg2 Bxg2 65. Kf2 Bd5 66. Kg1 g4 67. Kf1 g3 68. Ke1 h3 69. Ke2 g2 70. Ke3 g1=Q+ 71. Kd3 Qc5 72. Kd2 Qd4+ 73. Kc1 Qf2 74. Kb1 h2 75. Kc1 h1=Q#) 53. Qd8 {[%emt 0:00:08]} Qe3+ {[%emt 0:00:10]} 54. Kh1 {[%emt 0:00:02]} Qe1+ {[%emt 0:00:00]} 55. Kh2 {[%emt 0:00:00]} Qxe5+ {[%emt 0:00:01]} 56. Kg1 {[%emt 0:00:02]} Ba2 {[%emt 0:00:12]} (56... Bd5 $142 57. Qf8+ Kg5 58. Qd8+ Kg4 59. Qc8+ Qe6) 57. Qf8+ {[%emt 0:00:01]} Kg5 $4 {[%emt 0:00:01][%mdl 8192]} (57... Qg7 $19 58. Qb4 Bd5 59. Qf4+ Kh7) 58. Nf3+ {[%emt 0:00:02] Never resign too early!  Weighted Error Value: White=0.77/Black=0.52} 1-0

[Event "Super United Croatia GCT Blitz 2022"]
[Site "Zagreb"]
[Date "2022.07.24"]
[Round "16"]
[White "Mamedyarov, Shakhriyar"]
[Black "Carlsen, Magnus"]
[Result "1/2-1/2"]
[ECO "D47"]
[WhiteElo "2759"]
[BlackElo "2864"]
[Annotator "TA"]
[PlyCount "129"]
[EventDate "2022.07.20"]
[EventType "tourn"]
[EventCountry "CRO"]
[SourceTitle "playchess.com"]
[Source "ChessBase"]
[SourceQuality "1"]
[TimeControl "300+2"]

{[%evp 18,129,7,0,11,0,9,4,31,14,35,37,31,20,20,7,0,0,0,-12,-13,-19,0,0,22,27,29,32,42,14,20,17,9,22,27,28,28,28,27,0,0,0,0,0,0,0,0,0,0,0,13,16,23,18,441,450,450,430,415,415,408,301,288,287,273,294,533,533,524,521,503,479,354,301,266,48,60,0,0,0,0,0,0,0,0,0,8,0,0,0,0,0,0,0,0,0,0,0,0,0,0,0,0,0,0,0,0,0,0,0,0,0,0,0]} 1. d4 {[%emt 0:00:01]} d5 {[%emt 0:00:08]} 2. c4 {[%emt 0:00:01]} c6 {[%emt 0:00:01]} 3. Nf3 {[%emt 0:00:04]} Nf6 {[%emt 0:00:01]} 4. Nc3 {[%emt 0:00:04]} e6 {[%emt 0:00:02]} 5. e3 {[%emt 0:00:04]} Nbd7 {[%emt 0:00:02]} 6. Bd3 {[%emt 0:00:03]} dxc4 {[%emt 0:00:02]} 7. Bxc4 {[%emt 0:00:01]} b5 {[%emt 0:00:02]} 8. Bd3 {[%emt 0:00:01]} Bd6 {[%emt 0:00:01]} 9. O-O {[%emt 0:00:05]} O-O {[%emt 0:00:08]} 10. b3 {[%emt 0:00:01]} Bb7 {[%emt 0:00:10] D47: Semi-Slav: Meran System.} 11. Bb2 {[%emt 0:00:02]} a6 {[%emt 0:00:08]} 12. a4 {[%emt 0:00:05]} b4 {[%emt 0:00:32]} 13. Ne4 {[%emt 0:00:06]} Nxe4 {[%emt 0:00:01]} 14. Bxe4 {[%emt 0:00:01]} Nf6 {[%emt 0:00:02]} 15. Bd3 {[%emt 0:00:29]} c5 {[%emt 0:00:06]} 16. Rc1 {[%emt 0:00:03]} cxd4 {[%emt 0:00:10]} (16... Nd7 {keeps more tension.} 17. Ne5 cxd4 18. Nxd7 Qxd7 19. Bxd4 Rac8) 17. Bxd4 {[%emt 0:00:22] [#]} Qe7 $146 {[%emt 0:00:12]} ({Predecessor:} 17... a5 18. Qe2 Qe7 19. Ne5 Rac8 20. Nc4 e5 21. Bb2 Bc7 22. e4 Rfd8 23. Rfd1 Rd7 {½-½ (37) Bunyan,H (2139)-Miettinen,K (2239) LSS email 2009}) 18. Bb2 {[%emt 0:00:14]} Rfd8 {[%emt 0:00:09]} 19. Qe2 {[%emt 0:00:05]} Nd5 {[%emt 0:00:15]} 20. Nd4 {[%emt 0:00:08]} Nc3 {[%emt 0:01:30]} 21. Bxc3 {[%emt 0:00:06]} bxc3 {[%emt 0:00:02]} 22. Rxc3 {[%emt 0:00:02]} a5 {[%emt 0:00:03]} 23. f4 {[%emt 0:00:11]} g6 {[%emt 0:00:11]} 24. Nc6 {[%emt 0:00:27]} Bxc6 {[%emt 0:00:01]} 25. Rxc6 {[%emt 0:00:00]} Rac8 {[%emt 0:00:02]} 26. Rxc8 {[%emt 0:00:03]} Rxc8 {[%emt 0:00:01]} 27. Bc4 {[%emt 0:00:02]} Rd8 {[%emt 0:00:12]} 28. Qf3 {[%emt 0:00:06]} Bc5 {[%emt 0:00:25]} 29. Kh1 {[%emt 0:00:01]} Kg7 {[%emt 0:00:02]} 30. e4 {[%emt 0:00:01][%cal Be3e4,Be4f5,Bf5f6][%mdl 32]} Qf6 {[%emt 0:00:01] Against Qc3} 31. f5 {[%emt 0:00:29]} exf5 {[%emt 0:00:06]} 32. exf5 {[%emt 0:00:01]} g5 {[%emt 0:00:03]} 33. h3 {[%emt 0:00:20]} Re8 {[%emt 0:00:12] [#]} 34. Bxf7 $1 {[%emt 0:00:10]} Re3 {[%emt 0:00:09]} 35. Qh5 {[%emt 0:00:28]} (35. Qd5 $2 Re5 36. Qd7 Qxf7 37. f6+ Kg6 38. Qd3+ Kh6 $19) 35... Qxf7 $4 {[%emt 0:00:22][%mdl 8192]} (35... Bd6 $11 {and Black stays safe.} 36. Bc4 Kh8) 36. f6+ $18 {[%emt 0:00:02]} Kf8 {[%emt 0:00:00]} 37. Qh6+ {[%emt 0:00:03]} Ke8 {[%emt 0:00:02]} 38. Qxg5 {[%emt 0:00:02]} Ba7 {[%emt 0:00:08]} (38... Bd4 $2 39. Qg4 Qxf6 40. Rxf6 $18) 39. Qxa5 {[%emt 0:00:02] aiming for Rd1.} Kf8 {[%emt 0:00:08] [#]} 40. Qb4+ {[%emt 0:00:03]} Kg8 {[%emt 0:00:03]} 41. Qg4+ {[%emt 0:00:03]} Kh8 $2 {[%emt 0:00:01]} (41... Kf8 {keeps fighting.} 42. b4 Re6) 42. Rc1 {[%emt 0:00:05] Threatening mate with Rc8+.} Re8 {[%emt 0:00:05]} 43. Rc8 {[%emt 0:00:01]} Rxc8 {[%emt 0:00:13]} 44. Qxc8+ {[%emt 0:00:02]} Qg8 {[%emt 0:00:00]} 45. Qd7 {[%emt 0:00:16]} Bc5 {[%emt 0:00:08] [#]} 46. b4 $2 {[%emt 0:00:03]} (46. a5 $1 $18 Qf8 47. Qd5 (47. a6 Qxf6 48. Qc8+ Bf8 $18)) 46... Bf8 $14 {[%emt 0:00:02]} ({Less strong is} 46... Bxb4 47. Qd4 Bf8 48. a5 $16) 47. b5 {[%emt 0:00:05]} (47. Qd8 $14 Bxb4 48. Qd4) 47... Qb3 $11 {[%emt 0:00:02] The position is equal.} 48. Qd4 {[%emt 0:00:12] White wants to mate with f7+.} Kg8 {[%emt 0:00:03]} 49. b6 {[%emt 0:00:01]} Kf7 $1 {[%emt 0:00:05]} 50. a5 {[%emt 0:00:02]} Qb5 {[%emt 0:00:01]} 51. Qf4 {[%emt 0:00:36]} Bc5 {[%emt 0:00:04]} 52. Qf5 {[%emt 0:00:01] Hoping for b7.} Qxa5 {[%emt 0:00:03]} 53. Qxh7+ {[%emt 0:00:20]} Kxf6 {[%emt 0:00:01]} 54. Qh4+ {[%emt 0:00:04]} Kf7 {[%emt 0:00:03]} 55. Qf4+ {[%emt 0:00:03]} Ke6 {[%emt 0:00:02]} 56. Qe4+ {[%emt 0:00:05]} Kd6 {[%emt 0:00:01]} 57. b7 {[%emt 0:00:05]} Kc7 {[%emt 0:00:02]} 58. Qb1 {[%emt 0:00:09]} Kb8 {[%emt 0:00:01]} 59. Qd1 {[%emt 0:00:02]} Qc7 {[%emt 0:00:03]} 60. Qe2 {[%emt 0:00:03]} Bd6 {[%emt 0:00:02]} 61. Qe8+ {[%emt 0:00:01]} Kxb7 {[%emt 0:00:01]} 62. Qb5+ {[%emt 0:00:01]} Ka7 {[%emt 0:00:01]} 63. Qa4+ {[%emt 0:00:01]} Kb7 {[%emt 0:00:01]} 64. Qb5+ {[%emt 0:00:00]} Ka7 {[%emt 0:00:01] ( -> ...Qc1+)} 65. Qa4+ {[%emt 0:00:01] Black escapes into a draw.  Weighted Error Value: White=0.15 (very precise) /Black=0.22 (precise)} 1/2-1/2

[Event "Super United Croatia GCT Blitz 2022"]
[Site "Zagreb"]
[Date "2022.07.24"]
[Round "16"]
[White "Saric, Ivan"]
[Black "Firouzja, Alireza"]
[Result "0-1"]
[ECO "C78"]
[WhiteElo "2680"]
[BlackElo "2793"]
[Annotator "TA"]
[PlyCount "101"]
[EventDate "2022.07.20"]
[EventType "tourn"]
[EventCountry "CRO"]
[SourceTitle "playchess.com"]
[Source "ChessBase"]
[SourceQuality "1"]
[TimeControl "300+2"]

{[%evp 15,101,28,31,5,22,14,25,0,0,0,0,-3,0,8,23,0,0,0,22,10,0,0,25,40,27,25,68,27,40,41,57,35,180,26,56,41,56,55,95,66,173,185,181,189,181,186,181,175,297,286,316,83,73,82,100,87,77,89,128,110,226,197,197,197,193,0,86,94,88,85,437,437,437,436,427,416,533,533,533,526,526,507,471,395,486,432,423,358]} 1. e4 {[%emt 0:00:00]} e5 {[%emt 0:00:01]} 2. Nf3 {[%emt 0:00:01]} Nc6 {[%emt 0:00:00]} 3. Bb5 {[%emt 0:00:01]} a6 {[%emt 0:00:01]} 4. Ba4 {[%emt 0:00:01]} Nf6 {[%emt 0:00:01]} 5. O-O {[%emt 0:00:01]} b5 {[%emt 0:00:00]} 6. Bb3 {[%emt 0:00:01]} Bb7 {[%emt 0:00:01]} 7. d3 {[%emt 0:00:07]} Bc5 {[%emt 0:00:01]} 8. a4 {[%emt 0:00:14]} O-O {[%emt 0:00:03]} 9. Nbd2 {[%emt 0:00:19] 9.Bg5 gains popularity. C78: Ruy Lopez: Archangelsk and Möller Defences.} d6 {[%emt 0:00:04]} 10. c3 {[%emt 0:00:06]} Bb6 {[%emt 0:00:04]} 11. h3 {[%emt 0:00:02] White has an edge.} Ne7 {[%emt 0:00:48]} 12. Re1 {[%emt 0:00:05]} Ng6 {[%emt 0:00:08]} 13. Nf1 {[%emt 0:00:04] [#]} Re8 $146 {[%emt 0:00:01]} ({Predecessor:} 13... h6 14. Ng3 Re8 15. Bc2 c5 16. d4 Qc7 17. axb5 axb5 18. Rxa8 Rxa8 19. Nf5 Ra1 {½-½ (74) Jorge,R (1786)-Andrade,B (2092) Coimbra 2016}) 14. Ng3 {[%emt 0:00:03]} Rb8 {[%emt 0:00:24]} 15. axb5 {[%emt 0:00:08]} axb5 {[%emt 0:00:00]} 16. Bd2 {[%emt 0:00:55][%cal Bc1d2,Bd2c3,Bc3d4][%mdl 32]} Bc8 {[%emt 0:00:17]} 17. d4 {[%emt 0:00:05]} Bb7 {[%emt 0:00:26]} 18. Bc2 {[%emt 0:00:02]} exd4 {[%emt 0:00:13]} 19. cxd4 {[%emt 0:00:02]} c5 {[%emt 0:00:01]} 20. d5 {[%emt 0:00:35]} c4 {[%emt 0:00:05]} 21. Bc3 {[%emt 0:00:06]} (21. Bb4 $5 {[%cal Rd1d2]}) 21... Bc5 {[%emt 0:00:10]} 22. Qd2 {[%emt 0:00:10]} Bc8 {[%emt 0:00:12]} 23. Bd4 {[%emt 0:00:06]} Nd7 {[%emt 0:00:08] [#]} (23... Bxd4 $14 24. Nxd4 Bd7) 24. Nf5 $2 {[%emt 0:00:03]} (24. Bxg7 $1 $18 {[%mdl 512]} Nde5 25. Nxe5 dxe5 26. Bh6) 24... Nde5 {[%emt 0:00:23]} 25. Nxe5 {[%emt 0:00:09]} Nxe5 {[%emt 0:00:01]} 26. Bxc5 {[%emt 0:00:05]} dxc5 {[%emt 0:00:01]} 27. Ng3 {[%emt 0:00:41]} Bxh3 {[%emt 0:00:22]} 28. f4 $18 {[%emt 0:00:12]} Qh4 {[%emt 0:00:02]} 29. fxe5 {[%emt 0:00:07]} Qxg3 {[%emt 0:00:00]} 30. Ra3 {[%emt 0:00:04][%mdl 64] Skewer} Qxe5 {[%emt 0:00:07][%cal Oh3f5] White must now prevent ...Bf5!} 31. Rxh3 {[%emt 0:00:02]} b4 {[%emt 0:00:22]} (31... Ra8 $142) 32. Qf2 {[%emt 0:00:17]} (32. Ba4 Red8 33. Qf2 Qd4 34. Qxd4 cxd4) 32... g6 {[%emt 0:00:17]} 33. Rf3 $2 {[%emt 0:00:15]} (33. Qxc5 Qxb2 34. Bb1 (34. Qxc4 Rec8 $17) 34... Rec8 $16) (33. Rf1 Qd4 34. Bb1 Re7 $18) (33. Ba4 $18 {is more deadly.} Re7 34. Qxc5) 33... Qxb2 $16 {[%emt 0:00:04]} 34. Ba4 {[%emt 0:00:37]} Qxf2+ {[%emt 0:00:11]} 35. Kxf2 {[%emt 0:00:01]} Re5 {[%emt 0:00:12]} 36. d6 {[%emt 0:00:03][%cal Bd5d6,Bd6d7][%mdl 32]} Rd8 {[%emt 0:00:20]} 37. d7 {[%emt 0:00:01]} c3 {[%emt 0:00:02]} (37... Kf8 $16) 38. Rd3 {[%emt 0:00:08]} c4 {[%emt 0:00:05]} 39. Rd5 {[%emt 0:00:02]} f6 {[%emt 0:00:01]} (39... Rxd5 40. exd5 Kg7 41. Ke3 $18) 40. Rd6 $2 {[%emt 0:00:15]} (40. Ke3 $18 {And now Kd4 would win.} c2 41. Kd2 (41. Bxc2 b3 $18)) 40... b3 {[%emt 0:00:08]} (40... Kf7 $11 {remains equal.}) 41. Rc6 {[%emt 0:00:03] Hoping for Rc8.} Ra5 {[%emt 0:00:17]} 42. Rxc4 {[%emt 0:00:02]} Rxa4 {[%emt 0:00:00][%mdl 8192]} 43. Rxa4 $18 {[%emt 0:00:01]} Rxd7 {[%emt 0:00:01] aiming for ...c2.} 44. Rc4 {[%emt 0:00:04]} c2 {[%emt 0:00:03]} 45. Ke2 {[%emt 0:00:03] Against Rd1} Rb7 {[%emt 0:00:11]} 46. Kd2 {[%emt 0:00:01]} Rd7+ {[%emt 0:00:02]} 47. Kc1 {[%emt 0:00:01]} Rd3 {[%emt 0:00:01]} 48. Rc8+ {[%emt 0:00:02]} Kg7 {[%emt 0:00:01]} 49. Rf1 {[%emt 0:00:03]} Rd4 {[%emt 0:00:03]} 50. Rc3 {[%emt 0:00:02]} Ra4 {[%emt 0:00:07]} 51. Kd2 {[%emt 0:00:04][%mdl 32768] Weighted Error Value: White=0.28 (precise) /Black=0.44. Sensor Board Error (Ke4/e5)?} 0-1

[Event "Super United Croatia GCT Blitz 2022"]
[Site "Zagreb"]
[Date "2022.07.24"]
[Round "17"]
[White "Carlsen, Magnus"]
[Black "Firouzja, Alireza"]
[Result "0-1"]
[ECO "D24"]
[WhiteElo "2864"]
[BlackElo "2793"]
[Annotator "TA"]
[PlyCount "102"]
[EventDate "2022.07.20"]
[EventType "tourn"]
[EventCountry "CRO"]
[SourceTitle "playchess.com"]
[Source "ChessBase"]
[SourceQuality "1"]
[TimeControl "300+2"]

{[%evp 9,102,29,37,-1,1,6,31,13,29,0,0,0,0,-21,10,0,20,34,77,77,84,85,99,106,89,52,81,0,0,0,0,0,135,70,93,66,75,39,29,45,50,12,76,79,76,69,39,39,41,26,37,44,44,56,49,49,58,15,5,69,83,-5,0,-231,-218,-231,-222,-172,-174,-197,-197,-193,-152,-209,-23,-100,-77,-87,-27,-33,-8,-8,-8,-1979,-1556,-29938,-12832,-29977,-29978,-29979,-29980,-29978,29980,-8,29988]} 1. d4 {[%emt 0:00:01]} Nf6 {[%emt 0:00:01]} 2. c4 {[%emt 0:00:02]} e6 {[%emt 0:00:01]} 3. Nf3 {[%emt 0:00:02]} d5 {[%emt 0:00:01]} 4. Nc3 {[%emt 0:00:01]} dxc4 {[%emt 0:00:01]} 5. e4 {[%emt 0:00:06]} b5 {[%emt 0:00:01]} 6. Nxb5 {[%emt 0:00:01] D24: Queen's Gambit Accepted: 3 Nf3 Nf6 4 Nc3.} (6. e5 $5 {[%cal Re5f6]} Nd5 7. Nxb5 $14) 6... Nxe4 {[%emt 0:00:02]} 7. Qa4 {[%emt 0:00:02] [#] Prevents Bb4+.} Nd7 $146 {[%emt 0:00:02]} ({Predecessor:} 7... c6 8. Nc3 Nxc3 9. bxc3 Ba6 10. Bxc4 Bxc4 11. Qxc4 Bd6 12. O-O O-O 13. Rb1 Qc7 {½-½ (100) Carlsen,M (2847)-Nepomniachtchi,I (2789) chess24.com INT 2021}) 8. Qxc4 {[%emt 0:00:08] White is slightly better.} Bd6 {[%emt 0:00:01]} 9. Nxd6+ {[%emt 0:01:08]} (9. Qc6 {is interesting.} Bb4+ 10. Ke2 Rb8 11. Nxc7+ Ke7 12. Nxe6 Qa5 13. Qxe4 Nf6 14. Qe5) 9... Nxd6 {[%emt 0:00:09][%cal Be4d6,Bd6f5,Bf5d4][%mdl 32]} (9... cxd6 10. Qc6 Qa5+ 11. Nd2 $14) 10. Qc2 {[%emt 0:00:01]} Bb7 {[%emt 0:00:02]} 11. Bg5 {[%emt 0:00:03]} Qc8 {[%emt 0:00:16]} 12. Rc1 $36 {[%emt 0:00:10][%cal Ba1c1,Bc1c7,Bc7a7][%mdl 2080] White has good play.} Nf5 {[%emt 0:01:14]} 13. Qxc7 {[%emt 0:00:14] Threatens to win with Bb5.} (13. Be2 {seems wilder.} O-O 14. Qxc7 h6 15. Bd2) 13... Qxc7 {[%emt 0:00:01]} 14. Rxc7 {[%emt 0:00:02]} Bxf3 {[%emt 0:00:01]} 15. gxf3 {[%emt 0:00:04] Strongly threatening Bb5.} Nxd4 {[%emt 0:00:03]} 16. Be3 $1 {[%emt 0:00:02] This bishop pair is nice.} Ne5 {[%emt 0:00:17]} 17. Bg2 {[%emt 0:00:38]} (17. Bxd4 Nxf3+ 18. Ke2 Nxd4+ 19. Ke3 Nf5+ 20. Kf3 O-O $15) 17... Rd8 {[%emt 0:00:30]} 18. Rxa7 {[%emt 0:01:36]} ({White should try} 18. O-O $16) 18... Nd3+ $1 $11 {[%emt 0:00:17]} 19. Kd2 {[%emt 0:00:01]} Nf4 {[%emt 0:00:43]} 20. Bxd4 {[%emt 0:00:15]} e5 {[%emt 0:00:04] [#]} (20... Rxd4+ $11 21. Ke3 e5 22. Ra8+ Ke7 23. Rxh8 Nxg2+ 24. Ke2 Nf4+ 25. Ke1 Nd3+ 26. Kf1 (26. Ke2 Nf4+ 27. Ke1 Nd3+ 28. Kf1 Nf4 $11) 26... Nf4) 21. Bf1 {[%emt 0:00:17]} Rxd4+ $14 {[%emt 0:00:02]} 22. Kc2 {[%emt 0:00:08]} O-O {[%emt 0:00:04]} 23. Rc7 {[%emt 0:00:03] Prevents Rc8.} Ne6 {[%emt 0:00:21]} 24. Rc4 {[%emt 0:00:12]} Rd6 {[%emt 0:00:01]} 25. Rc3 {[%emt 0:00:07]} Rfd8 {[%emt 0:00:11]} (25... Nd4+ $11 26. Kb1 Rf6) 26. Bc4 $1 $16 {[%emt 0:00:06]} Rd2+ {[%emt 0:00:03]} 27. Kb1 {[%emt 0:00:03]} Nd4 {[%emt 0:00:11]} (27... Rxf2 28. Re1 $11) 28. Rf1 {[%emt 0:00:01]} Rb8 {[%emt 0:00:04]} 29. b3 {[%emt 0:00:01]} g5 {[%emt 0:00:08]} 30. h3 {[%emt 0:00:08]} Kg7 {[%emt 0:00:05]} 31. Rd3 {[%emt 0:00:03]} Rxd3 {[%emt 0:00:04]} 32. Bxd3 {[%emt 0:00:01]} Nxf3 $14 {[%emt 0:00:02][%cal Oe5e4][%mdl 4096] Endgame KRB-KRN} 33. Kb2 {[%emt 0:00:02]} e4 $1 {[%emt 0:00:09]} 34. Be2 {[%emt 0:00:08]} (34. Bxe4 Nd2 35. Re1 Re8 $17) 34... f5 {[%emt 0:00:09]} 35. Rd1 {[%emt 0:00:01]} (35. Bxf3 $16 exf3 36. a4) 35... h5 $11 {[%emt 0:00:06][%cal Bh7h5,Bh5h4,Bh4h3][%mdl 32]} 36. Rd5 $2 {[%emt 0:00:05]} (36. a4 $11) 36... Kf6 $19 {[%emt 0:00:02]} 37. a4 {[%emt 0:00:01]} h4 $1 {[%emt 0:00:09]} 38. a5 {[%emt 0:00:00]} g4 {[%emt 0:00:02]} 39. hxg4 {[%emt 0:00:01]} fxg4 {[%emt 0:00:01]} 40. a6 {[%emt 0:00:03]} h3 $1 {[%emt 0:00:06] And now ...Ne5 would win.} 41. Bf1 {[%emt 0:00:03]} (41. Ra5 $17) 41... Ng5 $2 {[%emt 0:00:10]} (41... Rh8 42. a7 $17) (41... Ne1 $19 {[%cal Oe4e3] ...e3! is the strong threat.} 42. Rh5 Kg6) 42. Kc3 {[%emt 0:00:06]} (42. a7 $11 {remains equal.} Ra8 43. Ra5) 42... e3 {[%emt 0:00:04]} 43. fxe3 {[%emt 0:00:05] [#]} g3 {[%emt 0:00:02]} (43... Ne4+ $1 $17 44. Kb2 (44. Kd4 Ng3 $17) 44... Ng3) 44. Rd4 {[%emt 0:00:02]} (44. Rxg5 $2 Kxg5 45. Bxh3 Ra8 $19) 44... Kf5 {[%emt 0:00:17] aiming for ...Ne4+.} 45. Rf4+ {[%emt 0:00:02]} (45. Rd5+ Kf6 46. Rd4 (46. Rxg5 $2 Kxg5 47. Bxh3 Ra8 $19) 46... g2 47. Bxg2 hxg2 $15) 45... Ke5 {[%emt 0:00:01]} 46. Bxh3 $4 {[%emt 0:00:01][%mdl 8192]} Nxh3 $11 {[%emt 0:00:04] KRN-KR} 47. Rg4 {[%emt 0:00:01] [#]} Nf2 $1 {[%emt 0:00:01]} ({Stronger than} 47... Rc8+ 48. Kb4 $11 (48. Kb2 Ra8 $11)) 48. Rg7 {[%emt 0:00:01]} Kf6 {[%emt 0:00:02]} 49. Rxg3 {[%emt 0:00:02]} Ne4+ {[%emt 0:00:02]} 50. Kc4 {[%emt 0:00:00]} Rb4+ $4 {[%emt 0:00:02][%mdl 8192]} (50... Nxg3 {and life is good for Black.} 51. Kc5 Rc8+ 52. Kb6 Ne4 53. a7 Nd6 54. Ka5 Ke5 55. b4 Kd5 56. Ka6 Rc6+ 57. Ka5 Nc4+ 58. Kb5 Rb6+ 59. Ka4 Ra6+ 60. Kb5 Rxa7 61. e4+ Kd4 62. Kc6 Ra6+ 63. Kc7 Kxe4 64. Kd8 Kf5 65. Kd7 Rb6 66. Kc8 Ke6 67. Kc7 Ke7 68. b5 Ke6 69. Kd8 Rb7 70. b6 Nxb6 71. Ke8 Rb8#) 51. Kd5 $2 {[%emt 0:00:00]} (51. Kxb4 {mates} Nxg3 52. a7 Nh5 53. a8=Q Kg5 54. Qg8+ Kh4 55. Qd8+ Kg4 56. Qc8+ Kg5 57. Qc5+ Kh6 58. e4) 51... Ra4 $2 {[%emt 0:00:04][%mdl 40960] Weighted Error Value: White=0.73/Black=0.35. Loss on time!?} (51... Nxg3 $11 52. a7 Rb5+ 53. Kc6 Ra5) 0-1